bitfinex/quotes_BTCUSD_20250314
["timestamp","ask_amount","ask_price","bid_price","bid_amount"]
[1741973201747,0.85079267,84552.0,84551.0,0.0009698]
[1741973201947,1.60191267,84552.0,84551.0,0.0009698]
[1741973202150,0.33136785,84551.0,84550.0,8e-07]
[1741973202349,0.24846,84521.0,84515.0,0.236643]
[1741973202562,0.23661,84527.0,84517.0,0.011831]
[1741973202769,0.248435,84529.0,84521.0,0.236625]
[1741973202968,0.01183,84528.0,84519.0,0.236631]
[1741973203287,0.01854885,84525.0,84524.0,0.236619]
[1741973203674,0.01867283,84525.0,84524.0,0.236619]
[1741973203892,0.01867283,84525.0,84524.0,0.248449]
[1741973204516,0.00012398,84525.0,84524.0,0.248449]
[1741973205637,0.00012398,84525.0,84519.0,0.011831]
[1741973205638,0.01183,84524.0,84519.0,0.23663]
[1741973205798,0.236622,84523.0,84519.0,0.23663]
[1741973205994,0.011831,84523.0,84515.0,0.011832]
[1741973206192,0.011831,84523.0,84504.0,0.0768]
[1741973206193,0.236638,84517.0,84509.0,0.151673]
[1741973206406,0.236645,84515.0,84512.0,0.23665]
[1741973206601,0.236637,84518.0,84514.0,0.236645]
[1741973206830,0.236633,84519.0,84516.0,0.23664]
[1741973207203,0.236631,84520.0,84518.0,0.236635]
[1741973207664,0.236629,84521.0,84518.0,0.236635]
[1741973207788,0.23662,84524.0,84521.0,0.236627]
[1741973207989,0.00012398,84525.0,84524.0,0.236619]
[1741973208238,0.00012398,84525.0,84524.0,0.248449]
[1741973208553,0.23663,84520.0,84513.0,0.011832]
[1741973208758,0.236623,84523.0,84516.0,0.236641]
[1741973208957,0.236623,84523.0,84515.0,0.248475]
[1741973209158,0.236626,84522.0,84515.0,0.248475]
[1741973209360,0.236636,84518.0,84515.0,0.236643]
[1741973209612,0.011831,84520.0,84510.0,0.011832]
[1741973209613,0.236649,84514.0,84510.0,0.011832]
[1741973209774,0.236649,84514.0,84511.0,0.236654]
[1741973209984,0.011832,84512.0,84506.0,0.2368368]
[1741973210189,0.011832,84512.0,84508.0,0.236663]
[1741973210391,0.011832,84511.0,84507.0,0.236664]
[1741973210592,0.011832,84513.0,84509.0,0.236661]
[1741973211120,0.236658,84510.0,84506.0,0.2368388]
[1741973211319,0.236663,84509.0,84506.0,0.0001698]
[1741973211465,0.236663,84509.0,84506.0,0.2368388]
[1741973211466,0.236661,84509.0,84506.0,0.2368388]
[1741973211812,0.248489,84511.0,84507.0,0.236666]
[1741973212044,0.236657,84511.0,84506.0,0.0001698]
[1741973212318,0.248499,84507.0,84506.0,0.0001698]
[1741973212924,0.011832,84511.0,84506.0,0.0001698]
[1741973212925,0.01450952,84512.0,84511.0,0.236655]
[1741973213425,0.01855008,84514.0,84511.0,0.236653]
[1741973213757,0.01855008,84514.0,84506.0,0.0001698]
[1741973213884,0.01855008,84514.0,84513.0,0.248481]
[1741973214089,0.01855008,84514.0,84513.0,0.236649]
[1741973214427,0.763191,84522.0,84519.0,0.236632]
[1741973214428,0.75136,84522.0,84519.0,0.236632]
[1741973214632,0.987985,84522.0,84517.0,0.011831]
[1741973214852,0.236627,84521.0,84516.0,0.236639]
[1741973215133,0.236627,84521.0,84517.0,0.236636]
[1741973215337,0.01195398,84525.0,84524.0,0.224619]
[1741973215338,0.00012398,84525.0,84524.0,0.224619]
[1741973215570,0.00012398,84525.0,84524.0,0.236449]
[1741973215778,0.00012398,84525.0,84524.0,0.236619]
[1741973215948,0.23662,84524.0,84521.0,0.236627]
[1741973216511,0.011832,84515.0,84512.0,0.236651]
[1741973216734,0.011832,84515.0,84507.0,0.011833]
[1741973216914,0.011832,84515.0,84510.0,0.236652]
[1741973217116,0.236644,84516.0,84513.0,0.236649]
[1741973217318,0.236644,84516.0,84512.0,0.236647]
[1741973217516,0.236646,84515.0,84511.0,0.236655]
[1741973217723,0.236646,84515.0,84512.0,0.236652]
[1741973218180,0.236646,84515.0,84511.0,0.236655]
[1741973218181,0.25519633,84515.0,84511.0,0.236655]
[1741973218386,0.248484,84512.0,84511.0,0.0001699]
[1741973218738,0.236647,84514.0,84511.0,0.0001699]
[1741973218948,0.248484,84512.0,84511.0,0.0001699]
[1741973219852,0.01855033,84515.0,84511.0,0.0001699]
[1741973220050,0.01855033,84515.0,84512.0,0.236652]
[1741973220214,0.236652,84512.0,84511.0,0.0001699]
[1741973220409,0.248484,84512.0,84511.0,0.0001699]
[1741973222471,0.01855033,84515.0,84514.0,0.248479]
[1741973222824,0.01855033,84515.0,84511.0,0.0120019]
[1741973222970,0.01855033,84515.0,84514.0,0.248479]
[1741973223384,0.01855033,84515.0,84511.0,0.0001699]
[1741973223592,0.236652,84512.0,84511.0,0.0001699]
[1741973223817,0.248484,84512.0,84511.0,0.0001699]
[1741973224347,0.01855033,84515.0,84514.0,0.248479]
[1741973224492,0.01855033,84515.0,84511.0,0.0001699]
[1741973224689,0.011832,84514.0,84511.0,0.0001699]
[1741973224889,0.248484,84512.0,84511.0,0.0001699]
[1741973226761,0.548484,84512.0,84511.0,0.0001699]
[1741973226966,0.671284,84512.0,84511.0,0.0001699]
[1741973228551,0.6898393,84512.0,84511.0,0.0001699]
[1741973228751,1.8552593,84512.0,84511.0,9e-07]
[1741973230939,1.6951393,84512.0,84511.0,9e-07]
[1741973232462,0.248499,84507.0,84506.0,7e-07]
[1741973232829,0.248499,84507.0,84500.0,3.399422]
[1741973232830,0.629717,84501.0,84500.0,2.2704477]
[1741973233029,0.629717,84501.0,84500.0,2.2704077]
[1741973233785,0.64827479,84501.0,84500.0,2.2704077]
[1741973233987,0.66281564,84501.0,84500.0,2.2704077]
[1741973234198,0.82809067,84501.0,84500.0,2.2704077]
[1741973234376,0.73208345,84501.0,84500.0,2.2704077]
[1741973234589,1.14598345,84501.0,84500.0,1.02633526]
[1741973234905,6.28795866,84501.0,84500.0,5e-07]
[1741973235050,1.17742566,84501.0,84500.0,5e-07]
[1741973235261,1.17742566,84501.0,84495.0,4.05e-05]
[1741973235262,0.548531,84496.0,84495.0,4.05e-05]
[1741973235466,1.11685185,84496.0,84495.0,4.05e-05]
[1741973235715,1.19235185,84496.0,84495.0,4.05e-05]
[1741973236076,0.62928,84496.0,84495.0,4.05e-05]
[1741973236280,0.877811,84496.0,84495.0,4.05e-05]
[1741973236491,0.41402389,84496.0,84495.0,4.05e-05]
[1741973237072,0.00012389,84496.0,84494.0,0.0001699]
[1741973237839,0.01868064,84496.0,84494.0,0.0001699]
[1741973237978,0.01868064,84496.0,84494.0,0.2368729]
[1741973238334,0.01868064,84496.0,84494.0,0.0001699]
[1741973238578,0.01868064,84496.0,84494.0,0.2368729]
[1741973238861,0.01868064,84496.0,84494.0,0.0001699]
[1741973239631,0.2367,84495.0,84494.0,0.0001699]
[1741973239843,0.25537764,84496.0,84494.0,0.0001699]
[1741973240053,0.01868064,84496.0,84494.0,0.0001699]
[1741973241227,0.248535,84495.0,84494.0,0.0001699]
[1741973242186,0.01868064,84496.0,84494.0,0.0001699]
[1741973243235,0.01868064,84496.0,84495.0,0.248535]
[1741973243436,0.01868064,84496.0,84494.0,0.0001699]
[1741973243961,0.01868064,84496.0,84495.0,0.248535]
[1741973244608,0.00012389,84496.0,84495.0,0.248535]
[1741973245404,0.00012389,84496.0,84494.0,0.0001699]
[1741973246908,0.00012389,84496.0,84494.0,0.2368719]
[1741973247069,0.00012389,84496.0,84495.0,0.248535]
[1741973247655,0.01867788,84496.0,84495.0,0.248535]
[1741973248087,0.01867788,84496.0,84494.0,0.0001699]
[1741973248418,0.01867788,84496.0,84495.0,0.2367]
[1741973248626,0.01867788,84496.0,84494.0,0.2368709]
[1741973248627,0.01867788,84496.0,84494.0,0.0001699]
[1741973250863,0.01867788,84496.0,84495.0,0.2367]
[1741973251487,0.01867788,84496.0,84495.0,0.248535]
[1741973252018,0.01867788,84496.0,84494.0,0.2487069]
[1741973252019,0.01867788,84496.0,84494.0,0.0001699]
[1741973252228,0.248535,84495.0,84494.0,0.0001699]
[1741973254979,0.01867788,84496.0,84494.0,0.0001699]
[1741973255591,0.01867788,84496.0,84495.0,0.248535]
[1741973256013,0.00012389,84496.0,84495.0,0.248535]
[1741973256238,0.14354324,84524.0,84510.0,0.011832]
[1741973256437,0.1282398,84525.0,84523.0,0.248452]
[1741973256438,0.0003398,84525.0,84523.0,0.248452]
[1741973256702,0.0003398,84525.0,84521.0,0.236627]
[1741973256703,0.0003398,84525.0,84524.0,0.248449]
[1741973256914,0.00046459,84525.0,84517.0,0.011831]
[1741973257122,0.00046459,84525.0,84520.0,0.011831]
[1741973257292,0.00046459,84525.0,84522.0,0.236624]
[1741973257493,0.00046459,84525.0,84523.0,0.236619]
[1741973257653,0.00046459,84525.0,84524.0,0.248449]
[1741973258809,0.01901314,84525.0,84524.0,0.248449]
[1741973259363,1.4e-07,84525.0,84524.0,0.548449]
[1741973259769,0.13984,84564.0,84556.0,0.248354]
[1741973259987,0.13996479,84564.0,84556.0,0.248354]
[1741973260328,0.01854343,84563.0,84556.0,0.236528]
[1741973260447,0.01854343,84563.0,84553.0,0.236536]
[1741973261102,0.01854343,84563.0,84555.0,0.236532]
[1741973261801,0.01854343,84563.0,84554.0,0.248359]
[1741973262129,0.01854343,84563.0,84554.0,0.011826]
[1741973262332,0.01854343,84563.0,84556.0,0.236528]
[1741973262959,0.01854343,84563.0,84552.0,0.011827]
[1741973262960,0.236527,84557.0,84544.0,0.011828]
[1741973263156,0.23770741,84557.0,84544.0,0.24839]
[1741973263383,0.23653,84556.0,84543.0,0.236565]
[1741973263578,0.236518,84561.0,84549.0,0.248375]
[1741973263779,0.01854465,84554.0,84552.0,0.236539]
[1741973263979,0.01854465,84554.0,84543.0,0.236565]
[1741973264189,0.01854465,84554.0,84548.0,0.236551]
[1741973264588,0.01854465,84554.0,84548.0,0.011827]
[1741973264841,0.01854465,84554.0,84549.0,0.011827]
[1741973265443,0.01854465,84554.0,84551.0,0.011827]
[1741973265595,0.01854465,84554.0,84553.0,0.011826]
[1741973266311,0.01854465,84554.0,84549.0,0.248373]
[1741973267092,0.01854465,84554.0,84545.0,0.236559]
[1741973267291,0.01854465,84554.0,84545.0,0.248387]
[1741973267496,0.01854465,84554.0,84544.0,0.011828]
[1741973267715,0.01888385,84554.0,84548.0,0.23655]
[1741973267918,0.01888385,84554.0,84549.0,0.001]
[1741973268476,0.01888385,84554.0,84547.0,0.24838]
[1741973268695,0.01888385,84554.0,84553.0,0.236538]
[1741973268897,0.01888385,84554.0,84553.0,0.248364]
[1741973271439,0.0003392,84554.0,84553.0,0.248364]
[1741973271765,0.0003392,84554.0,84553.0,0.249364]
[1741973271959,0.0003392,84554.0,84553.0,0.248364]
[1741973272369,0.0003392,84554.0,84553.0,0.249364]
[1741973272747,0.01888052,84554.0,84553.0,0.249364]
[1741973274460,0.0003392,84554.0,84553.0,0.249364]
[1741973278620,0.0003392,84554.0,84553.0,0.248364]
[1741973279060,0.0013392,84554.0,84553.0,0.249364]
[1741973280026,0.0003392,84554.0,84553.0,0.248364]
[1741973280248,0.0003392,84554.0,84552.0,0.236538]
[1741973280448,0.0003392,84554.0,84553.0,0.248364]
[1741973280650,0.01888048,84554.0,84553.0,0.248364]
[1741973281129,0.01888048,84554.0,84553.0,0.236538]
[1741973281298,0.01888048,84554.0,84547.0,0.011827]
[1741973281501,0.01888048,84554.0,84551.0,0.236542]
[1741973281707,0.01888048,84554.0,84553.0,0.004]
[1741973282123,0.01888048,84554.0,84548.0,0.248378]
[1741973282296,0.01888048,84554.0,84553.0,0.248364]
[1741973285960,0.01888048,84554.0,84553.0,0.551364]
[1741973286169,0.00012479,84564.0,84563.0,0.248335]
[1741973287841,0.00012479,84564.0,84560.0,0.236518]
[1741973288026,0.00012479,84564.0,84563.0,0.248335]
[1741973288634,0.00012479,84564.0,84563.0,0.252335]
[1741973289242,0.00012479,84564.0,84563.0,0.248335]
[1741973289988,7.9e-07,84564.0,84563.0,0.550335]
[1741973290483,0.0003396,84580.0,84563.0,0.550335]
[1741973290484,6e-07,84580.0,84579.0,0.248288]
[1741973290709,6e-07,84580.0,84579.0,0.763408]
[1741973292221,6e-07,84580.0,84579.0,0.77677448]
[1741973292647,0.0003394,84586.0,84585.0,0.24827]
[1741973293046,4e-07,84586.0,84585.0,0.54827]
[1741973293950,4e-07,84586.0,84585.0,0.55227]
[1741973294174,6.3e-07,84595.0,84591.0,0.011821]
[1741973294420,6.3e-07,84595.0,84594.0,0.248244]
[1741973294542,0.0003394,84609.0,84608.0,0.248203]
[1741973295343,0.00046419,84609.0,84608.0,0.248203]
[1741973296604,0.00046419,84609.0,84608.0,0.014819]
[1741973297443,0.00046419,84609.0,84608.0,0.011819]
[1741973297574,0.00046419,84609.0,84608.0,0.248203]
[1741973299009,0.00046419,84609.0,84608.0,0.250203]
[1741973299628,0.00046419,84609.0,84608.0,0.248203]
[1741973299958,0.00046419,84609.0,84608.0,0.249203]
[1741973300784,0.00046419,84609.0,84608.0,0.001]
[1741973301097,0.00046419,84609.0,84608.0,0.236384]
[1741973301303,0.00046419,84609.0,84608.0,0.248203]
[1741973302520,0.00046419,84609.0,84608.0,0.251203]
[1741973302867,0.00046419,84609.0,84608.0,0.248203]
[1741973303082,0.00046419,84609.0,84608.0,0.249203]
[1741973303599,0.00046419,84609.0,84608.0,0.248203]
[1741973304004,0.00046419,84609.0,84608.0,0.249203]
[1741973305466,0.00046419,84609.0,84603.0,0.236397]
[1741973305666,0.011819,84607.0,84596.0,0.01182]
[1741973305910,0.236397,84604.0,84600.0,0.236404]
[1741973306110,0.236398,84603.0,84600.0,0.236404]
[1741973306371,0.236401,84602.0,84598.0,0.236409]
[1741973306578,0.011819,84604.0,84591.0,0.236431]
[1741973306748,0.248237,84596.0,84589.0,0.236437]
[1741973307090,0.236403,84601.0,84598.0,0.236411]
[1741973307300,0.01182,84602.0,84598.0,0.236411]
[1741973307701,0.236402,84602.0,84599.0,0.236409]
[1741973307850,0.2822,84603.0,84599.0,0.236409]
[1741973308052,0.0458,84603.0,84595.0,0.0119904]
[1741973308275,0.0458,84603.0,84602.0,0.236401]
[1741973308571,0.00046419,84609.0,84600.0,0.01182]
[1741973308793,0.316486,84608.0,84604.0,0.236392]
[1741973309015,0.011819,84606.0,84600.0,0.236405]
[1741973309238,0.236398,84604.0,84600.0,0.236405]
[1741973309638,0.238399,84603.0,84598.0,0.23641]
[1741973309883,0.238399,84603.0,84599.0,0.236408]
[1741973309986,0.236409,84600.0,84595.0,0.0001694]
[1741973310186,0.01182,84600.0,84595.0,0.0001694]
[1741973310404,0.23641,84599.0,84595.0,0.0001694]
[1741973310600,0.626637,84596.0,84595.0,0.0001694]
[1741973311426,0.6451727,84596.0,84595.0,0.0001694]
[1741973311634,0.236426,84593.0,84586.0,0.23644]
[1741973311830,0.236432,84591.0,84587.0,0.236442]
[1741973312045,0.236434,84590.0,84585.0,0.236446]
[1741973312247,0.236437,84589.0,84585.0,0.236446]
[1741973312444,0.248253,84591.0,84586.0,0.236445]
[1741973312777,0.248253,84591.0,84585.0,0.236446]
[1741973312778,0.236433,84591.0,84588.0,0.23644]
[1741973312940,0.236434,84590.0,84587.0,0.23644]
[1741973313326,0.24995942,84591.0,84587.0,0.23644]
[1741973313973,0.02534742,84591.0,84587.0,0.236442]
[1741973314183,0.01352642,84591.0,84590.0,0.236434]
[1741973314381,0.311821,84595.0,84587.0,0.236439]
[1741973314829,0.236432,84591.0,84587.0,0.236439]
[1741973315166,0.236438,84589.0,84583.0,0.236451]
[1741973315372,0.236448,84586.0,84582.0,0.236456]
[1741973315997,0.3,84594.0,84591.0,0.236431]
[1741973316408,0.536423,84594.0,84591.0,0.236431]
[1741973316613,0.236434,84590.0,84584.0,0.23645]
[1741973316810,0.236441,84588.0,84584.0,0.236448]
[1741973317016,0.248258,84591.0,84584.0,0.236448]
[1741973317211,0.011822,84588.0,84582.0,0.236451]
[1741973317421,0.248264,84587.0,84583.0,0.236454]
[1741973317733,0.23645,84585.0,84582.0,0.236451]
[1741973317930,0.011822,84584.0,84577.0,0.236469]
[1741973318132,0.00118041,84583.0,84580.0,0.236459]
[1741973318385,0.248275,84585.0,84580.0,0.236459]
[1741973318591,0.011822,84582.0,84574.0,0.236478]
[1741973318764,0.011823,84578.0,84573.0,0.236482]
[1741973318904,0.236463,84580.0,84576.0,0.236471]
[1741973319105,0.248286,84580.0,84572.0,0.236484]
[1741973319469,0.011826,84559.0,84549.0,0.011827]
[1741973319738,0.0454,84572.0,84527.0,0.0819]
[1741973319739,0.1396,84563.0,84562.0,0.011825]
[1741973319991,0.75088,84570.0,84569.0,0.011824]
[1741973320224,0.449477,84579.0,84569.0,0.011824]
[1741973320225,0.4139,84579.0,84569.0,0.011824]
[1741973320425,0.0824,84585.0,84584.0,0.011822]
[1741973320624,0.0824,84594.0,84589.0,0.011821]
[1741973320778,0.53643,84592.0,84587.0,0.236442]
[1741973320976,0.3,84592.0,84588.0,0.248256]
[1741973321179,0.248253,84591.0,84586.0,0.248265]
[1741973321380,0.248253,84591.0,84560.0,0.26225068]
[1741973321381,0.236468,84578.0,84575.0,0.011823]
[1741973321656,0.011823,84577.0,84572.0,0.236484]
[1741973321978,0.236454,84583.0,84572.0,0.236484]
[1741973321979,0.23646,84581.0,84577.0,0.236468]
[1741973322124,0.236457,84582.0,84578.0,0.236467]
[1741973322322,0.0003388,84600.0,84589.0,0.236437]
[1741973322527,0.31370995,84595.0,84592.0,0.011821]
[1741973322731,0.31370995,84595.0,84593.0,0.248247]
[1741973322934,0.01370995,84595.0,84594.0,0.248244]
[1741973323150,0.0003388,84600.0,84595.0,0.248241]
[1741973323151,0.2367468,84600.0,84595.0,0.248241]
[1741973323512,1.06460826,84596.0,84594.0,0.236423]
[1741973323738,1.08314344,84596.0,84594.0,0.236423]
[1741973324570,1.08314344,84596.0,84595.0,0.23642]
[1741973324810,1.08314344,84596.0,84595.0,0.23142]
[1741973325250,1.08314344,84596.0,84595.0,0.243241]
[1741973325701,0.78414344,84596.0,84595.0,0.243241]
[1741973326240,0.78314344,84596.0,84595.0,0.243241]
[1741973327016,1.8e-07,84596.0,84595.0,0.243241]
[1741973327385,1.8e-07,84596.0,84595.0,0.24442291]
[1741973327736,1.8e-07,84596.0,84595.0,0.29412291]
[1741973327956,1.8e-07,84596.0,84595.0,0.292941]
[1741973328799,0.0003388,84600.0,84599.0,0.248229]
[1741973330143,0.0003388,84600.0,84599.0,0.254229]
[1741973331550,0.0003388,84600.0,84599.0,0.248229]
[1741973331756,0.0003388,84600.0,84599.0,0.252229]
[1741973332352,0.0003388,84600.0,84599.0,0.248229]
[1741973332645,0.0003388,84600.0,84599.0,0.252229]
[1741973336936,0.0003388,84600.0,84599.0,0.004]
[1741973337141,0.2367448,84600.0,84599.0,0.004]
[1741973337454,0.2485648,84600.0,84599.0,0.004]
[1741973338331,0.236437,84589.0,84587.0,0.0001694]
[1741973338555,0.23644,84588.0,84587.0,0.0001694]
[1741973338901,0.236437,84589.0,84587.0,0.0001694]
[1741973339319,0.248262,84588.0,84587.0,0.0001694]
[1741973339491,0.26170263,84588.0,84587.0,0.0001694]
[1741973340360,0.01853647,84588.0,84587.0,0.2484334]
[1741973341517,0.01853647,84588.0,84587.0,0.2366114]
[1741973341732,0.01853647,84588.0,84587.0,0.2484334]
[1741973342359,0.01853647,84588.0,84587.0,0.2514334]
[1741973342877,0.01853647,84588.0,84587.0,0.2484334]
[1741973343331,0.01853647,84588.0,84587.0,0.2514334]
[1741973344902,0.01853647,84588.0,84587.0,0.2484334]
[1741973345444,0.01853647,84588.0,84587.0,0.2514334]
[1741973346000,0.01853647,84588.0,84587.0,0.2396114]
[1741973346186,0.01853647,84588.0,84587.0,0.2514334]
[1741973346395,0.01853647,84588.0,84587.0,0.2484334]
[1741973347047,0.26679847,84588.0,84587.0,0.0041694]
[1741973347477,0.34319847,84588.0,84587.0,0.0041694]
[1741973347628,0.324662,84588.0,84587.0,0.0041694]
[1741973347831,0.0764,84588.0,84587.0,0.0041694]
[1741973348037,0.0764,84588.0,84587.0,0.2406114]
[1741973348623,0.0756,84596.0,84595.0,0.23642]
[1741973348822,0.01380064,84597.0,84596.0,0.248237]
[1741973349023,0.1398988,84600.0,84599.0,0.01182]
[1741973349228,0.0003388,84600.0,84599.0,0.248229]
[1741973350349,0.01887145,84600.0,84599.0,0.248229]
[1741973351484,4.5e-07,84600.0,84599.0,0.248229]
[1741973351693,4.5e-07,84600.0,84599.0,0.249229]
[1741973351969,0.0003394,84609.0,84608.0,0.248203]
[1741973353247,0.00046419,84609.0,84608.0,0.248203]
[1741973354834,0.00046419,84609.0,84608.0,0.252203]
[1741973358199,5.9e-07,84610.0,84609.0,0.2482]
[1741973358401,5.9e-07,84610.0,84609.0,0.2974]
[1741973358611,0.0008,84629.0,84628.0,0.248144]
[1741973358807,0.012616,84629.0,84623.0,0.236342]
[1741973358974,0.01852866,84628.0,84627.0,0.248147]
[1741973361499,0.01852866,84628.0,84627.0,0.236331]
[1741973361696,0.01852866,84628.0,84627.0,0.248147]
[1741973362282,0.01852866,84628.0,84625.0,0.248152]
[1741973362621,0.01852866,84628.0,84627.0,0.236331]
[1741973363430,0.01852866,84628.0,84626.0,0.248149]
[1741973363833,0.01852866,84628.0,84624.0,0.248154]
[1741973364153,0.25485666,84628.0,84625.0,0.236335]
[1741973364491,0.011817,84617.0,84614.0,0.236367]
[1741973364661,0.011817,84617.0,84606.0,0.011819]
[1741973364662,0.011816,84624.0,84615.0,0.011818]
[1741973364914,0.011816,84626.0,84621.0,0.011817]
[1741973365122,0.236342,84623.0,84621.0,0.236347]
[1741973365251,0.3756,84627.0,84623.0,0.011817]
[1741973365452,0.3756,84627.0,84624.0,0.011816]
[1741973365652,0.0003388,84628.0,84626.0,0.248149]
[1741973366058,0.3003388,84628.0,84625.0,0.236334]
[1741973366363,0.236331,84627.0,84625.0,0.236334]
[1741973366799,0.3003388,84628.0,84627.0,0.248147]
[1741973367189,0.236331,84627.0,84623.0,0.248157]
[1741973367398,0.0003388,84628.0,84624.0,0.011816]
[1741973367595,0.0003388,84628.0,84626.0,0.011816]
[1741973367790,0.0003388,84628.0,84627.0,0.236331]
[1741973367992,0.0003388,84628.0,84627.0,0.248147]
[1741973370248,0.0003388,84628.0,84626.0,0.236333]
[1741973370787,0.0003388,84628.0,84627.0,0.236331]
[1741973371601,0.0003388,84628.0,84623.0,0.011817]
[1741973371602,0.0003388,84628.0,84622.0,0.236344]
[1741973371748,0.2366678,84628.0,84625.0,0.236335]
[1741973372272,0.0003388,84628.0,84627.0,0.003]
[1741973372476,0.2366668,84628.0,84627.0,0.003]
[1741973372719,0.236336,84626.0,84620.0,0.011817]
[1741973372889,0.0802388,84628.0,84621.0,0.011817]
[1741973373092,0.0802388,84628.0,84625.0,0.002]
[1741973373291,0.0802388,84628.0,84627.0,0.011816]
[1741973373438,0.0802388,84628.0,84627.0,0.248147]
[1741973373632,0.0003388,84628.0,84627.0,0.248147]
[1741973378530,0.0003388,84628.0,84627.0,0.250147]
[1741973380002,0.0003388,84628.0,84627.0,0.002]
[1741973380212,0.24966321,84628.0,84627.0,0.002]
[1741973380412,0.2484828,84628.0,84627.0,0.002]
[1741973381392,0.236342,84623.0,84622.0,0.0001693]
[1741973381716,0.248154,84625.0,84622.0,0.2365133]
[1741973381937,0.236341,84624.0,84622.0,0.0001693]
[1741973382125,0.248157,84624.0,84622.0,0.0001693]
[1741973382330,0.236342,84623.0,84622.0,0.0001693]
[1741973383234,0.236336,84626.0,84622.0,0.0001693]
[1741973383564,0.011816,84626.0,84622.0,0.2365113]
[1741973383676,0.236338,84625.0,84622.0,0.2365113]
[1741973383886,0.23634,84624.0,84622.0,0.0001693]
[1741973384094,0.236342,84623.0,84620.0,0.23635]
[1741973384296,0.236358,84618.0,84614.0,0.236367]
[1741973384507,0.236356,84618.0,84613.0,0.011818]
[1741973384744,0.236361,84617.0,84613.0,0.248185]
[1741973384940,0.236361,84617.0,84614.0,0.236365]
[1741973385561,0.25489126,84617.0,84614.0,0.236365]
[1741973385764,0.011818,84616.0,84611.0,0.236373]
[1741973385963,0.011818,84616.0,84595.0,0.13944]
[1741973385964,0.2482,84609.0,84589.0,0.0499]
[1741973386188,0.2482,84609.0,84603.0,0.011819]
[1741973386389,0.2482,84609.0,84605.0,0.23639]
[1741973386756,0.2482,84609.0,84600.0,0.0001694]
[1741973388635,0.647477,84609.0,84600.0,0.0001694]
[1741973388816,0.236405,84601.0,84592.0,0.00840602]
[1741973389014,0.3,84608.0,84600.0,0.236405]
[1741973389216,0.3,84608.0,84599.0,0.236409]
[1741973389567,0.3,84608.0,84595.0,0.23642]
[1741973389568,0.236404,84601.0,84597.0,0.248234]
[1741973389894,0.236404,84601.0,84597.0,0.236414]
[1741973390667,0.236402,84602.0,84597.0,0.236414]
[1741973390668,0.011819,84606.0,84599.0,0.01182]
[1741973390872,0.248207,84607.0,84602.0,0.236398]
[1741973391078,0.536384,84608.0,84601.0,0.01182]
[1741973391412,0.536384,84608.0,84597.0,0.0001696]
[1741973391413,0.236407,84600.0,84597.0,0.0001696]
[1741973391567,0.011819,84603.0,84597.0,0.2365836]
[1741973391916,0.236402,84602.0,84597.0,0.2365836]
[1741973392198,0.25493598,84602.0,84597.0,0.2365836]
[1741973392400,0.01853398,84602.0,84601.0,0.236403]
[1741973392933,0.01853398,84602.0,84601.0,0.248223]
[1741973394418,0.01853398,84602.0,84601.0,0.236403]
[1741973394656,0.00983,84601.0,84597.0,0.0119896]
[1741973394871,0.00983,84601.0,84597.0,0.0001696]
[1741973395049,0.00983,84601.0,84600.0,0.248226]
[1741973395585,0.02269346,84601.0,84600.0,0.248226]
[1741973395886,0.02269346,84601.0,84598.0,0.236409]
[1741973396256,0.02269346,84601.0,84600.0,0.001]
[1741973396909,0.02269346,84601.0,84600.0,0.237406]
[1741973397235,0.02269346,84601.0,84600.0,0.249226]
[1741973397810,0.02269346,84601.0,84600.0,0.248226]
[1741973398215,0.00983,84601.0,84600.0,0.248226]
[1741973399228,0.00983,84601.0,84600.0,0.249226]
[1741973399649,0.00983,84601.0,84600.0,0.248226]
[1741973399812,0.00983,84601.0,84599.0,0.236408]
[1741973400020,0.00983,84601.0,84598.0,0.236411]
[1741973400334,0.236412,84598.0,84597.0,0.0001696]
[1741973400518,0.00983,84601.0,84598.0,0.236412]
[1741973400519,0.246234,84601.0,84598.0,0.236412]
[1741973400865,0.236404,84601.0,84598.0,0.236412]
[1741973401196,0.248232,84598.0,84597.0,0.0001696]
[1741973401400,0.630632,84598.0,84597.0,0.0001696]
[1741973401575,0.3,84607.0,84603.0,0.248217]
[1741973401774,0.13944,84608.0,84604.0,0.248214]
[1741973402003,0.13944,84608.0,84599.0,0.01182]
[1741973402004,0.236398,84604.0,84599.0,0.01182]
[1741973402287,0.236398,84604.0,84599.0,0.248228]
[1741973402288,0.236401,84602.0,84599.0,0.248228]
[1741973402784,0.26134473,84605.0,84600.0,0.248226]
[1741973402993,0.78781513,86053.0,84600.0,0.248226]
[1741973402994,0.0003392,84621.0,84608.0,0.248203]
[1741973403197,0.01345789,84612.0,84608.0,0.246203]
[1741973403398,0.0003392,84621.0,84608.0,0.246203]
[1741973404147,0.01312904,84618.0,84608.0,0.246203]
[1741973406315,0.0003392,84621.0,84608.0,0.249203]
[1741973406931,0.01287014,84620.0,84608.0,0.249203]
[1741973407998,0.0003392,84621.0,84608.0,0.249203]
[1741973409203,0.0003392,84621.0,84608.0,0.246203]
[1741973409404,0.0003392,84621.0,84608.0,0.251203]
[1741973409592,0.011817,84620.0,84608.0,0.251203]
[1741973409813,0.0003392,84621.0,84608.0,0.251203]
[1741973410090,0.2366872,84621.0,84608.0,0.251203]
[1741973410296,0.0003392,84621.0,84608.0,0.251203]
[1741973410668,0.2366862,84621.0,84608.0,0.251203]
[1741973410829,0.0003392,84621.0,84608.0,0.251203]
[1741973411243,0.0003392,84621.0,84608.0,0.25001829]
[1741973411640,0.2366872,84621.0,84608.0,0.24501829]
[1741973411843,0.0003392,84621.0,84608.0,0.24501829]
[1741973412044,0.0003392,84621.0,84608.0,0.24901829]
[1741973412843,7.2e-07,84609.0,84608.0,0.24901829]
[1741973413377,7.2e-07,84609.0,84608.0,0.38841829]
[1741973414159,7.2e-07,84609.0,84608.0,0.81351829]
[1741973414406,9.2e-07,84621.0,84620.0,0.248167]
[1741973414616,7.2e-07,84629.0,84628.0,0.248144]
[1741973414822,7.2e-07,84629.0,84628.0,0.387544]
[1741973416806,7.2e-07,84629.0,84628.0,0.248144]
[1741973417007,7.2e-07,84629.0,84628.0,0.387544]
[1741973417221,7.2e-07,84629.0,84628.0,0.248144]